fUST/lending_fUST_20241029
["ID","MTS","AMOUNT","RATE_DAILY","PERIOD"]
[340988436,1730215838814,-153.0,0.00023256,2]
[340988437,1730215838824,-153.0,0.00023256,2]
[340988438,1730215838834,-153.0,0.00023256,2]
[340988439,1730215838843,-153.0,0.00023265,2]
[340988440,1730215838853,-153.0,0.00023265,2]
[340988441,1730215838862,-153.0,0.00023265,2]
[340988442,1730215838872,-153.0,0.00023265,2]
[340988443,1730215838882,-153.0,0.00023265,2]
[340988444,1730215838891,-153.0,0.00023265,2]
[340988445,1730215838900,-153.0,0.00023265,2]
[340988446,1730215838910,-153.0,0.00023265,2]
[340988447,1730215838919,-153.0,0.00023265,2]
[340988448,1730215838929,-500.0,0.00023277,3]
[340988449,1730215838939,-500.0,0.00023277,3]
[340988450,1730215838950,-413.3793907,0.00023277,3]
[340988451,1730215838960,-500.0,0.00023277,3]
[340988452,1730215838970,-500.0,0.00023277,3]
[340988453,1730215838979,-500.0,0.00023277,3]
[340988454,1730215838989,-500.0,0.00023277,3]
[340988455,1730215838998,-500.0,0.00023277,3]
[340988456,1730215839008,-6222.14,0.00023277,3]
[340988457,1730215839018,-423.81866413,0.00023278,3]
[340988458,1730215839029,-500.0,0.00023278,3]
[340988459,1730215839039,-500.0,0.00023278,3]
[340988460,1730215839048,-500.0,0.00023278,3]
[340988461,1730215839058,-500.0,0.00023278,3]
[340988462,1730215839068,-500.0,0.00023278,3]
[340988463,1730215839077,-652.66,0.00023278,3]
[340988464,1730215839087,-500.0,0.00023278,3]
[340988465,1730215839097,-500.0,0.00023278,3]
[340988466,1730215839106,-525.84,0.00023278,3]
[340988467,1730215839116,-500.0,0.00023278,3]
[340988468,1730215839127,-500.0,0.00023278,3]
[340988469,1730215839137,-500.0,0.00023278,3]
[340988470,1730215839148,-500.0,0.00023278,3]
[340988471,1730215839159,-500.0,0.00023279,3]
[340988472,1730215839168,-500.0,0.00023279,3]
[340988473,1730215839178,-500.0,0.00023279,3]
[340988474,1730215839188,-173.506597,0.00023501,2]
[340988475,1730215839197,-196.966473,0.00023501,2]
[340988476,1730215839207,-500.0,0.00023551,3]
[340988477,1730215839217,-500.0,0.00023551,3]
[340988478,1730215839227,-500.0,0.00023551,3]
[340988479,1730215839237,-500.0,0.00023551,3]
[340988480,1730215839249,-500.0,0.00023551,3]
[340988481,1730215839261,-429.48737942,0.00023551,3]
[340988482,1730215839270,-298.57904633,0.00023551,3]
[340988483,1730215839279,-6222.14,0.00023551,3]
[340988484,1730215839288,-500.0,0.00023552,3]
[340988486,1730215839298,-500.0,0.00023552,3]
[340988488,1730215839308,-500.0,0.00023552,3]
[340988490,1730215839318,-500.0,0.00023552,3]
[340988491,1730215839331,-652.66,0.00023552,3]
[340988492,1730215839343,-500.0,0.00023552,3]
[340988493,1730215839353,-500.0,0.00023552,3]
[340988494,1730215839363,-525.84,0.00023552,3]
[340988496,1730215839373,-500.0,0.00023552,3]
[340988498,1730215839383,-491.01451944,0.00023552,3]
[340988499,1730215839393,-500.0,0.00023552,3]
[340988500,1730215839404,-500.0,0.00023552,3]
[340988501,1730215839414,-500.0,0.00023553,3]
[340988502,1730215839424,-500.0,0.00023553,3]
[340988503,1730215839434,-500.0,0.00023553,3]
[340988504,1730215839444,-500.0,0.00023553,3]
[340988505,1730215839454,-210.9014947,0.00023669,2]
[340988506,1730215839463,-210.9014947,0.00023669,2]
[340988507,1730215839473,-210.9014947,0.00023669,2]
[340988508,1730215839483,-209.0983725,0.00023669,2]
[340988509,1730215839493,-210.9014947,0.00023669,2]
[340988510,1730215839505,-421.8029894,0.00023669,2]
[340988511,1730215839515,-210.9014947,0.00023669,2]
[340988512,1730215839525,-210.9014947,0.00023669,2]
[340988513,1730215839536,-210.4916942,0.00023669,2]
[340988514,1730215839545,-151.0,0.00023708,2]
[340988515,1730215839555,-500.0,0.00023825,3]
[340988517,1730215839566,-500.0,0.00023825,3]
[340988519,1730215839576,-500.0,0.00023825,3]
[340988521,1730215839588,-500.0,0.00023825,3]
[340988522,1730215839597,-500.0,0.00023825,3]
[340988523,1730215839607,-6222.14,0.00023825,3]
[340988524,1730215839617,-500.0,0.00023826,3]
[340988525,1730215839627,-500.0,0.00023826,3]
[340988526,1730215839637,-500.0,0.00023826,3]
[340988527,1730215839647,-500.0,0.00023826,3]
[340988528,1730215839657,-652.66,0.00023826,3]
[340988529,1730215839666,-500.0,0.00023826,3]
[340988530,1730215839676,-500.0,0.00023826,3]
[340988531,1730215839687,-525.84,0.00023826,3]
[340988532,1730215839696,-500.0,0.00023826,3]
[340988533,1730215839706,-500.0,0.00023826,3]
[340988535,1730215839834,-500.0,0.00023826,3]
[340988537,1730215839845,-500.0,0.00023827,3]
[340988538,1730215839855,-500.0,0.00023827,3]
[340988540,1730215839867,-500.0,0.00023827,3]
[340988541,1730215839877,-1988.45190755,0.0002383,2]
[340988542,1730215839888,-184.61558816,0.00023833,3]
[340988543,1730215839897,-500.0,0.00023867,9]
[340988544,1730215839906,-151.0,0.00023898,2]
[340988545,1730215839916,-500.0,0.00023973,2]
[340988546,1730215839927,-500.0,0.00023973,2]
[340988547,1730215839936,-500.0,0.00023973,2]
[340988548,1730215839947,-500.0,0.00023973,2]
[340988549,1730215839957,-500.0,0.00023973,2]
[340988550,1730215839966,-500.0,0.00023998,3]
[340988551,1730215839976,-358.60955977,0.00023999,2]
[340988552,1730215839986,-500.0,0.00023999,3]
[340988553,1730215839996,-333.09599109,0.00023999,3]
[340988554,1730215840007,-33263.51446202,0.00024,2]
[340988555,1730215840244,-216.0922667,0.00021597,2]
[340988556,1730215840254,-500.0,0.00022181,3]
[340988557,1730215840264,-500.0,0.00022181,3]
[340988558,1730215840274,-500.0,0.00022456,3]
[340988559,1730215840283,-42.93644363,0.0002273,3]
[340988571,1730215842885,-500.0,0.00022181,3]
[340988572,1730215842896,-500.0,0.00022181,3]
[340988573,1730215842907,-500.0,0.00022455,3]
[340988574,1730215842917,-500.0,0.00022729,3]
[340988575,1730215842926,-457.06355637,0.0002273,3]
[340988576,1730215842936,-628.31,0.00023003,3]
[340988577,1730215842947,-500.0,0.00023003,3]
[340988578,1730215842957,-500.0,0.00023004,3]
[340988579,1730215842967,-628.31,0.00023277,3]
[340988580,1730215842977,-500.0,0.00023278,3]
[340988581,1730215842987,-628.31,0.00023551,3]
[340988582,1730215842996,-500.0,0.00023552,3]
[340988583,1730215843007,-628.31,0.00023825,3]
[340988584,1730215843018,-500.0,0.00023826,3]
[340988585,1730215843029,-118971.2889039,0.00024,2]
[340988586,1730215843042,-2060.89063955,0.00024,2]
[340988592,1730215845898,-500.0,0.00022181,3]
[340988593,1730215845908,-500.0,0.00022181,3]
[340988594,1730215845917,-210.9014947,0.00022847,2]
[340988595,1730215845927,-500.0,0.00023277,3]
[340988596,1730215845937,-500.0,0.00023551,3]
[340988597,1730215845947,-500.0,0.00023825,3]
[340988598,1730215845957,-358.60955977,0.00023999,2]
[340988599,1730215845967,-35519.89113151,0.00024,2]
[340988603,1730215961804,150.0,0.00022001,60]
[340988604,1730216280790,2546.19294141,0.00034942,30]
[340988605,1730216300446,581.15,0.00022001,60]
[340988609,1730216749971,775.0,0.0002011,2]
[340988611,1730216800647,1162.5,0.00022001,60]
[340988612,1730216828169,-187.841279,0.00021178,2]
[340988613,1730216828196,-187.841279,0.00021183,2]
[340988614,1730216828223,-187.841279,0.00021189,2]
[340988615,1730216828248,-35.46181569,0.00021195,2]
[340988617,1730216891793,662.5,0.00022001,60]
[340988663,1730217032087,-250.0,0.00020551,2]
[340988665,1730217032097,-152.37946331,0.00021195,2]
[340988667,1730217032107,-187.841279,0.000212,2]
[340988669,1730217032117,-133.04925769,0.00021206,2]
[340988828,1730217038259,-54.79202131,0.00021206,2]
[340988839,1730217038400,-187.841279,0.00021211,2]
[340988840,1730217038413,-187.841279,0.00021217,2]
[340988841,1730217038423,-187.841279,0.00021222,2]
[340988842,1730217038433,-187.841279,0.00021228,2]
[340988843,1730217038442,-187.841279,0.00021234,2]
[340988844,1730217038452,-187.841279,0.00021239,2]
[340988845,1730217038462,-187.841279,0.00021245,2]
[340988846,1730217038471,-187.841279,0.0002125,2]
[340988847,1730217038481,-187.841279,0.00021256,2]
[340988848,1730217038491,-187.841279,0.00021261,2]
[340988849,1730217038501,-187.841279,0.00021267,2]
[340988850,1730217038511,-187.841279,0.00021272,2]
[340988851,1730217038521,-187.841279,0.00021278,2]
[340988852,1730217038530,-187.841279,0.00021284,2]
[340988853,1730217038539,-194.15815524,0.00021981,2]
[340988854,1730217038550,-4364.63806426,0.00022079,2]
[340988855,1730217038559,-247.4989763,0.00022081,2]
[340988856,1730217038569,-300.0,0.0002217,2]
[340988857,1730217038579,-300.0,0.0002217,2]
[340988858,1730217038588,-254.64,0.00022171,3]
[340988859,1730217038598,-763.92,0.00022171,3]
[340988860,1730217038607,-500.0,0.00022173,2]
[340988861,1730217038616,-500.0,0.00022173,2]
[340988862,1730217038626,-500.0,0.00022173,2]
[340988863,1730217038636,-500.0,0.00022173,2]
[340988864,1730217038645,-500.0,0.00022173,2]
[340988865,1730217038655,-501.5204398,0.00022173,2]
[340988866,1730217038665,-500.0,0.00022173,2]
[340988867,1730217038674,-325.28651991,0.00022173,2]
[340988868,1730217038685,-500.0,0.00022173,2]
[340988869,1730217038695,-500.0,0.00022178,2]
[340988870,1730217038705,-167.28726392,0.00022178,2]
[340988871,1730217038718,-500.0,0.00022178,2]
[340988872,1730217038727,-500.0,0.00022178,2]
[340988873,1730217038738,-500.0,0.00022178,2]
[340988874,1730217038749,-500.0,0.00022178,2]
[340988875,1730217038759,-500.0,0.00022178,2]
[340988876,1730217038768,-200.55075579,0.00022178,2]
[340988877,1730217038778,-500.0,0.00022178,2]
[340988878,1730217038790,-271.1421271,0.00022178,2]
[340988879,1730217038800,-500.0,0.00022178,2]
[340988880,1730217038809,-507.6608195,0.00022178,2]
[340988881,1730217038819,-500.0,0.00022178,2]
[340988882,1730217038828,-500.0,0.00022178,2]
[340988883,1730217038837,-500.0,0.00022178,2]
[340988884,1730217038847,-604.79528558,0.00022178,2]
[340988885,1730217038856,-500.0,0.00022178,2]
[340988886,1730217038866,-500.0,0.00022178,2]
[340988887,1730217038875,-500.0,0.00022178,2]
[340988888,1730217038885,-500.0,0.00022178,2]
[340988889,1730217038895,-500.0,0.00022178,2]
[340988890,1730217038904,-500.0,0.00022178,2]
[340988891,1730217038913,-500.0,0.00022178,2]
[340988892,1730217038922,-500.0,0.00022178,2]
[340988893,1730217038933,-279.73713989,0.00022178,2]
[340988894,1730217038942,-500.0,0.00022178,2]
[340988895,1730217038952,-455.0,0.00022178,2]
[340988896,1730217038962,-235.12749703,0.00022179,2]
[340988897,1730217038972,-500.0,0.00022179,3]
[340988898,1730217038981,-500.0,0.00022179,3]
[340988899,1730217038991,-500.0,0.00022179,3]
[340988900,1730217039001,-500.0,0.00022179,3]
[340988901,1730217039011,-500.0,0.00022179,3]
[340988902,1730217039021,-500.0,0.00022179,3]
[340988903,1730217039030,-500.0,0.00022179,3]
[340988904,1730217039039,-500.0,0.00022179,3]
[340988905,1730217039048,-594.67030515,0.00022179,3]
[340988906,1730217039058,-500.0,0.00022179,3]
[340988907,1730217039067,-514.8992849,0.00022179,3]
[340988908,1730217039076,-500.0,0.00022179,2]
[340988909,1730217039086,-500.0,0.00022179,3]
[340988910,1730217039096,-500.0,0.00022179,3]
[340988911,1730217039107,-568.01302933,0.00022179,3]
[340988912,1730217039118,-500.0,0.00022179,3]
[340988913,1730217039128,-500.0,0.00022179,3]
[340988914,1730217039137,-510.06583153,0.00022179,3]
[340988915,1730217039146,-500.0,0.00022179,3]
[340988916,1730217039156,-426.51771158,0.00022179,3]
[340988917,1730217039165,-500.0,0.00022179,3]
[340988918,1730217039174,-548.71452841,0.00022179,3]
[340988919,1730217039186,-500.0,0.00022179,3]
[340988920,1730217039200,-500.0,0.00022179,3]
[340988921,1730217039209,-500.0,0.00022179,3]
[340988922,1730217039219,-500.0,0.00022179,3]
[340988923,1730217039228,-500.0,0.00022179,3]
[340988924,1730217039237,-500.0,0.00022179,3]
[340988925,1730217039249,-505.84329918,0.00022179,3]
[340988926,1730217039259,-500.0,0.00022179,3]
[340988927,1730217039269,-503.93493787,0.00022179,3]
[340988928,1730217039278,-154.13187896,0.00022179,3]
[340988929,1730217039287,-500.0,0.00022179,3]
[340988930,1730217039297,-500.0,0.00022179,3]
[340988931,1730217039306,-500.0,0.00022179,3]
[340988932,1730217039316,-500.0,0.00022179,3]
[340988933,1730217039325,-500.0,0.00022179,3]
[340988934,1730217039336,-500.0,0.00022179,3]
[340988935,1730217039345,-500.0,0.00022179,3]
[340988936,1730217039356,-500.0,0.00022179,3]
[340988937,1730217039365,-500.0,0.00022179,2]
[340988938,1730217039376,-500.0,0.00022179,2]
[340988939,1730217039386,-500.0,0.00022179,2]
[340988940,1730217039395,-500.0,0.00022179,3]
[340988941,1730217039405,-500.0,0.00022179,3]
[340988942,1730217039414,-496.50353989,0.00022179,3]
[340988943,1730217039424,-500.0,0.00022179,3]
[340988944,1730217039437,-608.69904442,0.00022179,3]
[340988945,1730217039447,-500.0,0.00022179,3]
[340988946,1730217039457,-6032.41,0.00022179,3]
[340988947,1730217039466,-500.0,0.00022179,3]
[340988948,1730217039476,-512.22658294,0.00022179,3]
[340988949,1730217039486,-207.87228731,0.00022179,3]
[340988950,1730217039495,-500.0,0.00022179,3]
[340988951,1730217039505,-503.6738448,0.00022179,3]
[340988952,1730217039514,-500.0,0.0002218,3]
[340988953,1730217039524,-500.0,0.0002218,3]
[340988954,1730217039534,-500.0,0.0002218,3]
[340988955,1730217039544,-500.0,0.0002218,3]
[340988956,1730217039554,-500.0,0.0002218,3]
[340988957,1730217039563,-500.0,0.0002218,3]
[340988958,1730217039573,-500.0,0.0002218,3]
[340988959,1730217039583,-500.0,0.0002218,3]
[340988960,1730217039594,-500.0,0.0002218,3]
[340988961,1730217039604,-528.94,0.0002218,3]
[340988962,1730217039614,-500.0,0.0002218,3]
[340988965,1730217039624,-500.0,0.0002218,3]
[340988967,1730217039635,-500.0,0.0002218,3]
[340988968,1730217039644,-500.0,0.0002218,3]
[340988970,1730217039654,-500.0,0.0002218,3]
[340988972,1730217039664,-500.0,0.0002218,3]
[340988974,1730217039674,-500.0,0.0002218,3]
[340988976,1730217039687,-305.48,0.0002218,3]
[340988977,1730217039697,-500.0,0.0002218,3]
[340988978,1730217039711,-500.0,0.0002218,3]
[340988979,1730217039720,-500.0,0.0002218,3]
[340988980,1730217039731,-500.0,0.0002218,3]
[340988981,1730217039740,-500.0,0.0002218,3]
[340988982,1730217039751,-298.84762069,0.0002218,3]
[340988983,1730217039761,-500.0,0.0002218,3]
[340988984,1730217039771,-500.0,0.0002218,3]
[340988985,1730217039780,-639.53,0.0002218,3]
[340988987,1730217039792,-500.0,0.0002218,3]
[340988988,1730217039801,-500.0,0.0002218,3]
[340988989,1730217039811,-500.0,0.0002218,3]
[340988990,1730217039820,-500.0,0.0002218,3]
[340988991,1730217039830,-500.0,0.0002218,3]
[340988992,1730217039839,-500.0,0.0002218,3]
[340988993,1730217039849,-500.0,0.0002218,3]
[340988994,1730217039858,-500.0,0.0002218,3]
[340988995,1730217039868,-500.0,0.0002218,3]
[340988996,1730217039879,-500.0,0.0002218,3]
[340988997,1730217039891,-500.0,0.0002218,3]
[340988998,1730217039902,-500.0,0.0002218,3]
[340988999,1730217039912,-500.0,0.0002218,3]
[340989000,1730217039922,-500.0,0.0002218,3]
[340989001,1730217039935,-500.0,0.0002218,3]
[340989002,1730217039945,-500.0,0.0002218,3]
[340989003,1730217039955,-464.00912851,0.0002218,3]
[340989004,1730217039965,-500.0,0.0002218,3]
[340989005,1730217039974,-500.0,0.0002218,3]
[340989006,1730217039983,-500.0,0.0002218,3]
[340989007,1730217039993,-500.0,0.0002218,3]
[340989008,1730217040002,-175.92767887,0.0002218,3]
[340989009,1730217040013,-500.0,0.0002218,3]
[340989010,1730217040022,-500.0,0.0002218,3]
[340989011,1730217040034,-500.0,0.0002218,3]
[340989012,1730217040043,-500.0,0.0002218,3]
[340989013,1730217040054,-500.0,0.0002218,3]
[340989014,1730217040064,-500.0,0.0002218,3]
[340989015,1730217040073,-500.0,0.0002218,3]
[340989016,1730217040083,-380.11934785,0.0002218,3]
[340989017,1730217040092,-181.30164949,0.0002218,2]
[340989018,1730217040102,-500.0,0.0002218,3]
[340989019,1730217040111,-500.0,0.0002218,3]
[340989020,1730217040120,-500.0,0.0002218,3]
[340989021,1730217040130,-500.0,0.0002218,3]
[340989022,1730217040139,-500.0,0.0002218,3]
[340989023,1730217040150,-500.0,0.0002218,3]
[340989024,1730217040160,-500.0,0.0002218,3]
[340989025,1730217040170,-500.0,0.0002218,3]
[340989026,1730217040179,-500.0,0.0002218,3]
[340989027,1730217040191,-500.0,0.0002218,3]
[340989028,1730217040200,-500.0,0.0002218,3]
[340989029,1730217040209,-500.0,0.0002218,3]
[340989030,1730217040219,-500.0,0.0002218,3]
[340989031,1730217040230,-500.0,0.0002218,3]
[340989032,1730217040239,-500.0,0.0002218,3]
[340989033,1730217040248,-500.0,0.0002218,3]
[340989034,1730217040258,-500.0,0.0002218,3]
[340989035,1730217040268,-538.18414167,0.0002218,3]
[340989036,1730217040278,-500.0,0.0002218,2]
[340989037,1730217040287,-500.0,0.0002218,2]
[340989038,1730217040297,-500.0,0.0002218,2]
[340989039,1730217040308,-500.0,0.0002218,3]
[340989040,1730217040319,-500.0,0.0002218,3]
[340989041,1730217040331,-500.0,0.0002218,3]
[340989042,1730217040343,-500.0,0.0002218,3]
[340989044,1730217040354,-500.0,0.0002218,3]
[340989045,1730217040365,-500.0,0.0002218,3]
[340989046,1730217040375,-655.02,0.0002218,3]
[340989047,1730217040386,-500.0,0.0002218,3]
[340989048,1730217040397,-408.05242722,0.0002218,3]
[340989049,1730217040410,-500.0,0.00022181,3]
[340989050,1730217040420,-500.0,0.00022181,3]
[340989051,1730217040430,-500.0,0.00022181,3]
[340989052,1730217040442,-500.0,0.00022181,3]
[340989053,1730217040452,-500.0,0.00022181,3]
[340989055,1730217040463,-500.0,0.00022181,3]
[340989057,1730217040473,-500.0,0.00022181,3]
[340989058,1730217040484,-500.0,0.00022181,3]
[340989059,1730217040494,-178.36,0.00022181,3]
[340989060,1730217040504,-500.0,0.00022181,3]
[340989061,1730217040516,-500.0,0.00022181,3]
[340989062,1730217040525,-500.0,0.00022181,3]
[340989063,1730217040536,-500.0,0.00022181,3]
[340989064,1730217040546,-500.0,0.00022181,3]
[340989065,1730217040556,-500.0,0.00022181,3]
[340989066,1730217040566,-500.0,0.00022181,3]
[340989067,1730217040576,-519.53,0.00022181,3]
[340989068,1730217040585,-500.0,0.00022181,3]
[340989069,1730217040595,-500.0,0.00022181,3]
[340989070,1730217040606,-319.62715922,0.00022181,3]
[340989071,1730217040616,-500.0,0.00022181,3]
[340989072,1730217040626,-500.0,0.00022181,3]
[340989073,1730217040637,-500.0,0.00022181,3]
[340989074,1730217040646,-500.0,0.00022181,3]
[340989075,1730217040655,-500.0,0.00022181,3]
[340989076,1730217040664,-500.0,0.00022181,3]
[340989077,1730217040673,-500.0,0.00022181,3]
[340989078,1730217040687,-500.0,0.00022181,3]
[340989079,1730217040697,-500.0,0.00022181,3]
[340989080,1730217040711,-500.0,0.00022181,3]
[340989081,1730217040720,-500.0,0.00022181,3]
[340989082,1730217040730,-500.0,0.00022181,3]
[340989083,1730217040740,-500.0,0.00022181,3]
[340989084,1730217040750,-500.0,0.00022181,3]
[340989085,1730217040759,-500.0,0.00022181,3]
[340989086,1730217040768,-500.0,0.00022181,3]
[340989087,1730217040778,-500.0,0.00022181,3]
[340989088,1730217040790,-579.32272302,0.00022181,3]
[340989089,1730217040800,-500.0,0.00022181,3]
[340989090,1730217040809,-500.0,0.00022181,3]
[340989091,1730217040819,-244.83777295,0.00022181,3]
[340989092,1730217040828,-521.66938117,0.00022181,3]
[340989093,1730217040837,-573.59,0.00022181,3]
[340989094,1730217040847,-500.0,0.00022181,3]
[340989095,1730217040856,-500.0,0.00022181,3]
[340989096,1730217040866,-500.0,0.00022181,3]
[340989097,1730217040876,-500.0,0.00022181,3]
[340989098,1730217040886,-500.0,0.00022181,3]
[340989099,1730217040896,-500.0,0.00022181,3]
[340989100,1730217040906,-500.0,0.00022181,3]
[340989101,1730217040916,-500.0,0.00022181,3]
[340989102,1730217040926,-500.0,0.00022181,3]
[340989103,1730217040938,-500.0,0.00022181,3]
[340989104,1730217040948,-517.28620025,0.00022181,3]
[340989105,1730217040957,-502.516635,0.00022181,3]
[340989106,1730217040967,-320.51655373,0.00022181,3]
[340989107,1730217040977,-500.0,0.00022181,3]
[340989108,1730217040987,-500.0,0.00022181,3]
[340989109,1730217040997,-500.0,0.00022181,3]
[340989110,1730217041006,-500.0,0.00022181,3]
[340989111,1730217041016,-500.0,0.00022181,3]
[340989112,1730217041026,-500.0,0.00022181,3]
[340989113,1730217041036,-500.0,0.00022181,3]
[340989114,1730217041045,-363.6601971,0.00022181,3]
[340989115,1730217041054,-500.0,0.00022181,3]
[340989116,1730217041064,-500.0,0.00022181,3]
[340989117,1730217041074,-500.0,0.00022181,3]
[340989118,1730217041084,-500.0,0.00022181,3]
[340989119,1730217041093,-500.0,0.00022181,3]
[340989120,1730217041102,-540.49181485,0.00022181,3]
[340989121,1730217041112,-500.0,0.00022181,3]
[340989122,1730217041122,-500.0,0.00022181,3]
[340989123,1730217041132,-500.0,0.00022181,3]
[340989124,1730217041141,-500.0,0.00022181,3]
[340989125,1730217041151,-500.0,0.00022181,3]
[340989126,1730217041160,-500.0,0.00022181,3]
[340989127,1730217041170,-500.0,0.00022181,3]
[340989128,1730217041179,-504.96750137,0.00022181,3]
[340989129,1730217041191,-500.0,0.00022181,3]
[340989130,1730217041201,-500.0,0.00022181,3]
[340989131,1730217041210,-500.0,0.00022181,3]
[340989132,1730217041219,-500.0,0.00022181,2]
[340989133,1730217041229,-500.0,0.00022181,3]
[340989134,1730217041239,-565.85661365,0.00022181,3]
[340989135,1730217041248,-500.0,0.00022181,3]
[340989136,1730217041257,-522.16558505,0.00022181,3]
[340989137,1730217041266,-500.0,0.00022181,3]
[340989138,1730217041276,-500.0,0.00022181,3]
[340989139,1730217041286,-500.0,0.00022181,3]
[340989140,1730217041295,-500.0,0.00022181,3]
[340989141,1730217041304,-500.0,0.00022181,3]
[340989142,1730217041314,-500.0,0.00022181,3]
[340989143,1730217041323,-500.0,0.00022181,3]
[340989144,1730217041333,-500.0,0.00022181,3]
[340989145,1730217041343,-500.0,0.00022181,3]
[340989146,1730217041353,-500.0,0.00022181,3]
[340989147,1730217041364,-500.0,0.00022181,3]
[340989148,1730217041373,-500.0,0.00022181,3]
[340989149,1730217041383,-264.98084242,0.00022181,3]
[340989150,1730217041393,-500.0,0.00022181,3]
[340989151,1730217041403,-500.0,0.00022181,3]
[340989152,1730217041413,-500.0,0.00022181,3]
[340989153,1730217041422,-500.0,0.00022181,2]
[340989154,1730217041432,-500.0,0.00022181,3]
[340989155,1730217041442,-500.0,0.00022181,3]
[340989156,1730217041451,-505.73526019,0.00022181,3]
[340989157,1730217041462,-500.0,0.00022181,3]
[340989158,1730217041472,-264.78225107,0.00022181,3]
[340989159,1730217041483,-500.0,0.00022181,3]
[340989160,1730217041493,-500.0,0.00022181,3]
[340989161,1730217041503,-500.0,0.00022181,3]
[340989162,1730217041512,-500.0,0.00022181,3]
[340989163,1730217041522,-500.0,0.00022453,3]
[340989164,1730217041532,-508.72501605,0.00022453,3]
[340989165,1730217041541,-500.0,0.00022453,3]
[340989166,1730217041551,-500.0,0.00022453,3]
[340989167,1730217041561,-500.0,0.00022453,3]
[340989168,1730217041572,-500.0,0.00022453,3]
[340989169,1730217041582,-500.0,0.00022453,3]
[340989170,1730217041591,-500.0,0.00022453,3]
[340989171,1730217041602,-582.58952537,0.00022453,3]
[340989172,1730217041611,-395.03519715,0.00022453,3]
[340989173,1730217041620,-500.0,0.00022453,3]
[340989174,1730217041630,-500.0,0.00022453,3]
[340989175,1730217041756,-506.98875931,0.00022453,3]
[340989176,1730217041766,-500.0,0.00022453,3]
[340989177,1730217041776,-500.0,0.00022453,2]
[340989178,1730217041786,-500.0,0.00022453,3]
[340989179,1730217041796,-6032.41,0.00022453,3]
[340989180,1730217041807,-500.0,0.00022453,3]
[340989181,1730217041817,-500.0,0.00022454,3]
[340989182,1730217041827,-500.0,0.00022454,3]
[340989183,1730217041837,-500.0,0.00022454,3]
[340989184,1730217041849,-500.0,0.00022454,3]
[340989185,1730217041859,-500.0,0.00022454,3]
[340989186,1730217041869,-500.0,0.00022454,3]
[340989187,1730217041879,-500.0,0.00022454,3]
[340989188,1730217041889,-500.0,0.00022454,3]
[340989189,1730217041899,-574.87223484,0.00022454,3]
[340989190,1730217041909,-500.0,0.00022454,3]
[340989191,1730217041918,-500.0,0.00022454,3]
[340989192,1730217041929,-500.0,0.00022454,3]
[340989193,1730217041940,-500.0,0.00022454,3]
[340989194,1730217041950,-500.0,0.00022454,3]
[340989195,1730217041959,-500.0,0.00022454,3]
[340989196,1730217041970,-500.0,0.00022454,3]
[340989197,1730217041979,-639.53,0.00022454,3]